fUST/lending_fUST_20250530
["ID","MTS","AMOUNT","RATE_DAILY","PERIOD"]
[363041646,1748559044351,-2070.38,0.00020273,2]
[363041648,1748559044360,-430.0,0.00020273,2]
[363041650,1748559044371,-430.0,0.00020273,2]
[363041652,1748559044380,-803.80191032,0.00020273,2]
[363041654,1748559044389,-2055.19,0.00020273,2]
[363041656,1748559044399,-1511.1,0.00020273,2]
[363041658,1748559044410,-151.0,0.00020273,2]
[363041660,1748559044419,-430.0,0.00020273,2]
[363041662,1748559044428,-510.0,0.00020273,2]
[363041663,1748559044438,-430.0,0.00020273,2]
[363041665,1748559044447,-1350.97,0.00020273,2]
[363041676,1748559044536,-1584.57,0.00020273,2]
[363041678,1748559044546,-750.88,0.00020273,2]
[363041680,1748559044555,-1425.46,0.00020273,2]
[363041682,1748559044564,-430.0,0.00020273,2]
[363041684,1748559044573,-722.11,0.00020273,2]
[363041686,1748559044583,-760.02,0.00020273,2]
[363041688,1748559044592,-430.0,0.00020273,2]
[363041690,1748559044601,-578.85,0.00020273,2]
[363041692,1748559044610,-615.21,0.00020273,2]
[363041694,1748559044620,-913.66,0.00020273,2]
[363041696,1748559044629,-741.95,0.00020273,2]
[363041698,1748559044638,-430.0,0.00020273,2]
[363041700,1748559044649,-430.0,0.00020273,2]
[363041702,1748559044658,-2799.2,0.00020273,2]
[363041704,1748559044668,-430.0,0.00020273,2]
[363041706,1748559044677,-517.21,0.00020273,2]
[363041708,1748559044686,-430.0,0.00020273,2]
[363041710,1748559044696,-430.0,0.00020273,2]
[363041712,1748559044705,-151.0,0.00020273,2]
[363041714,1748559044714,-1019.32,0.00020273,2]
[363041716,1748559044724,-151.0,0.00020273,2]
[363041718,1748559044733,-3424.75,0.00020273,2]
[363041720,1748559044743,-430.0,0.00020273,2]
[363041722,1748559044752,-1169.52,0.00020273,2]
[363041724,1748559044762,-430.0,0.00020273,2]
[363041726,1748559044771,-430.0,0.00020273,2]
[363041727,1748559044781,-2693.38,0.00020273,2]
[363041729,1748559044790,-2725.7,0.00020273,2]
[363041731,1748559044800,-430.35,0.00020273,2]
[363041734,1748559044810,-151.0,0.000203,3]
[363041735,1748559044819,-1632.27489707,0.0002031,2]
[363041737,1748559044828,-598.687,0.00020331,2]
[363041739,1748559044838,-348.91710497,0.00020337,2]
[363041740,1748559044847,-207.4,0.00020338,2]
[363041742,1748559044856,-300.0,0.00020338,2]
[363041744,1748559044866,-300.0,0.00020338,2]
[363041745,1748559044875,-300.0,0.00020338,2]
[363041747,1748559044884,-300.0,0.00020338,2]
[363041749,1748559044894,-300.0,0.00020338,2]
[363041751,1748559044903,-300.0,0.00020338,2]
[363041753,1748559044911,-300.0,0.00020338,2]
[363041755,1748559044920,-300.0,0.00020338,2]
[363041757,1748559044930,-300.0,0.00020338,2]
[363041759,1748559044939,-300.0,0.00020338,2]
[363041761,1748559044949,-5000.0,0.00020338,2]
[363041763,1748559044958,-300.0,0.00020338,2]
[363041765,1748559044967,-3595.64204661,0.00020338,2]
[363041766,1748559044977,-300.0,0.00020338,2]
[363041767,1748559044985,-300.0,0.00020338,2]
[363041768,1748559044994,-300.0,0.00020338,2]
[363041769,1748559045006,-300.0,0.00020338,2]
[363041770,1748559045015,-3259.03433194,0.00020417,3]
[363041771,1748559045025,-151.0,0.000205,3]
[363041772,1748559045034,-500.0,0.00020521,2]
[363041773,1748559045043,-359.86,0.00020538,3]
[363041774,1748559045053,-151.0,0.00020547,2]
[363041775,1748559045063,-151.0,0.00020547,2]
[363041776,1748559045072,-151.0,0.00020547,2]
[363041777,1748559045081,-240.94588292,0.00020547,2]
[363041778,1748559045091,-430.0,0.00020547,2]
[363041779,1748559045100,-384.88816113,0.00020547,2]
[363041780,1748559045109,-430.0,0.00020547,2]
[363041781,1748559045120,-430.0,0.00020547,2]
[363041782,1748559045129,-430.0,0.00020547,2]
[363041783,1748559045139,-500.0,0.00020547,2]
[363041784,1748559045149,-1131.49,0.00020547,2]
[363041785,1748559045159,-681.15,0.00020547,2]
[363041786,1748559045168,-430.0,0.00020547,2]
[363041787,1748559045177,-853.32,0.00020547,2]
[363041788,1748559045186,-430.0,0.00020547,2]
[363041789,1748559045195,-430.0,0.00020547,2]
[363041790,1748559045205,-430.0,0.00020547,2]
[363041791,1748559045214,-458.44,0.00020547,2]
[363041792,1748559045223,-430.0,0.00020547,2]
[363041793,1748559045232,-430.0,0.00020547,2]
[363041794,1748559045242,-430.0,0.00020547,2]
[363041795,1748559045251,-760.73,0.00020547,2]
[363041796,1748559045261,-398.05,0.00020547,2]
[363041797,1748559045270,-430.0,0.00020547,2]
[363041798,1748559045279,-430.0,0.00020547,2]
[363041799,1748559045289,-180.0,0.00020547,2]
[363041800,1748559045299,-430.0,0.00020547,2]
[363041801,1748559045308,-221.85411967,0.00020547,2]
[363041802,1748559045317,-430.0,0.00020547,2]
[363041803,1748559045327,-433.62550337,0.00020547,2]
[363041804,1748559045336,-430.0,0.00020547,2]
[363041805,1748559045345,-160.0,0.00020547,2]
[363041806,1748559045355,-773.76,0.00020547,2]
[363041807,1748559045367,-4753.22,0.00020547,2]
[363041808,1748559045377,-430.0,0.00020547,2]
[363041809,1748559045388,-662.19,0.00020547,2]
[363041810,1748559045399,-3674.83,0.00020547,2]
[363041811,1748559045410,-430.0,0.00020547,2]
[363041812,1748559045419,-344.24726365,0.00020547,2]
[363041813,1748559045428,-430.0,0.00020547,2]
[363041814,1748559045438,-430.0,0.00020547,2]
[363041815,1748559045447,-589.21,0.00020547,2]
[363041816,1748559045457,-2053.24,0.00020547,2]
[363041817,1748559045466,-332.81,0.00020547,2]
[363041818,1748559045475,-430.0,0.00020547,2]
[363041819,1748559045485,-430.0,0.00020547,2]
[363041820,1748559045494,-720.56,0.00020547,2]
[363041821,1748559045503,-696.31,0.00020547,2]
[363041822,1748559045512,-2613.16,0.00020547,2]
[363041823,1748559045522,-530.0,0.00020547,2]
[363041824,1748559045531,-552.78637685,0.00020547,2]
[363041825,1748559045540,-430.0,0.00020547,2]
[363041826,1748559045549,-430.0,0.00020547,2]
[363041827,1748559045558,-430.0,0.00020547,2]
[363041828,1748559045567,-4412.79,0.00020547,2]
[363041829,1748559045577,-968.5,0.00020547,2]
[363041830,1748559045586,-430.0,0.00020547,2]
[363041831,1748559045595,-517.0,0.00020547,2]
[363041832,1748559045604,-644.49,0.00020547,2]
[363041833,1748559045613,-430.0,0.00020547,2]
[363041834,1748559045622,-430.0,0.00020547,2]
[363041836,1748559045631,-953.49,0.00020547,2]
[363041838,1748559045640,-2879.71,0.00020547,2]
[363041839,1748559045649,-458.78,0.00020547,2]
[363041840,1748559045657,-697.57,0.00020547,2]
[363041841,1748559045666,-430.0,0.00020547,2]
[363041842,1748559045675,-3822.31,0.00020547,2]
[363041843,1748559045684,-430.0,0.00020547,2]
[363041844,1748559045693,-848.19,0.00020547,2]
[363041845,1748559045702,-1041.37,0.00020547,2]
[363041846,1748559045710,-8172.02,0.00020547,2]
[363041847,1748559045719,-1022.41,0.00020547,2]
[363041848,1748559045728,-1425.87,0.00020547,2]
[363041849,1748559045737,-5104.13,0.00020547,2]
[363041850,1748559045746,-1326.38,0.00020547,2]
[363041851,1748559045755,-873.84,0.00020547,2]
[363041852,1748559045763,-7369.0,0.00020547,2]
[363041853,1748559045772,-467.28,0.00020547,2]
[363041854,1748559045781,-430.0,0.00020547,2]
[363041855,1748559045789,-2070.38,0.00020547,2]
[363041856,1748559045798,-430.0,0.00020547,2]
[363041857,1748559045807,-430.0,0.00020547,2]
[363041858,1748559045816,-2055.19,0.00020547,2]
[363041859,1748559045824,-1511.1,0.00020547,2]
[363041860,1748559045833,-430.0,0.00020547,2]
[363041861,1748559045842,-1350.97,0.00020547,2]
[363041862,1748559045851,-1584.57,0.00020547,2]
[363041863,1748559045860,-750.88,0.00020547,2]
[363041864,1748559045988,-1425.46,0.00020547,2]
[363041865,1748559045998,-430.0,0.00020547,2]
[363041866,1748559046011,-722.11,0.00020547,2]
[363041867,1748559046020,-760.02,0.00020547,2]
[363041868,1748559046030,-430.0,0.00020547,2]
[363041869,1748559046039,-578.85,0.00020547,2]
[363041870,1748559046049,-615.21,0.00020547,2]
[363041871,1748559046059,-913.66,0.00020547,2]
[363041872,1748559046068,-741.95,0.00020547,2]
[363041873,1748559046079,-430.0,0.00020547,2]
[363041874,1748559046088,-430.0,0.00020547,2]
[363041875,1748559046098,-2799.2,0.00020547,2]
[363041876,1748559046107,-430.0,0.00020547,2]
[363041877,1748559046117,-517.21,0.00020547,2]
[363041878,1748559046127,-430.0,0.00020547,2]
[363041879,1748559046136,-430.0,0.00020547,2]
[363041880,1748559046146,-1019.32,0.00020547,2]
[363041881,1748559046155,-3424.75,0.00020547,2]
[363041882,1748559046166,-1169.52,0.00020547,2]
[363041883,1748559046175,-430.0,0.00020547,2]
[363041884,1748559046185,-2693.38,0.00020547,2]
[363041885,1748559046195,-2725.7,0.00020547,2]
[363041886,1748559046205,-430.35,0.00020547,2]
[363041887,1748559046214,-1500.0,0.00020568,2]
[363041888,1748559046223,-3259.03433194,0.0002059,3]
[363041889,1748559046232,-420.0,0.00020602,2]
[363041890,1748559046242,-1285.30327751,0.00020626,2]
[363041891,1748559046251,-151.0,0.000207,4]
[363041892,1748559046260,-151.0,0.000207,4]
[363041893,1748559046270,-475.0,0.00020702,2]
[363041894,1748559046279,-1632.27489707,0.00020721,2]
[363041895,1748559046288,-3259.03433194,0.00020762,3]
[363041896,1748559046298,-254.78,0.00020821,2]
[363041897,1748559046308,-430.0,0.00020821,2]
[363041898,1748559046317,-430.0,0.00020821,2]
[363041899,1748559046328,-500.0,0.00020821,2]
[363041900,1748559046337,-1131.49,0.00020821,2]
[363041901,1748559046347,-681.15,0.00020821,2]
[363041902,1748559046356,-430.0,0.00020821,2]
[363041903,1748559046366,-853.32,0.00020821,2]
[363041904,1748559046376,-430.0,0.00020821,2]
[363041905,1748559046385,-430.0,0.00020821,2]
[363041906,1748559046395,-430.0,0.00020821,2]
[363041907,1748559046405,-458.44,0.00020821,2]
[363041908,1748559046414,-430.0,0.00020821,2]
[363041909,1748559046423,-430.0,0.00020821,2]
[363041910,1748559046433,-430.0,0.00020821,2]
[363041911,1748559046442,-151.882523,0.00020821,2]
[363041912,1748559046452,-760.73,0.00020821,2]
[363041913,1748559046461,-430.0,0.00020821,2]
[363041914,1748559046471,-430.0,0.00020821,2]
[363041915,1748559046481,-151.0,0.00020821,2]
[363041916,1748559046490,-430.0,0.00020821,2]
[363041917,1748559046499,-430.0,0.00020821,2]
[363041918,1748559046512,-430.0,0.00020821,2]
[363041920,1748559046523,-773.76,0.00020821,2]
[363041922,1748559046532,-4753.22,0.00020821,2]
[363041924,1748559046541,-430.0,0.00020821,2]
[363041926,1748559046551,-662.19,0.00020821,2]
[363041928,1748559046560,-3674.83,0.00020821,2]
[363041930,1748559046570,-430.0,0.00020821,2]
[363041931,1748559046580,-430.0,0.00020821,2]
[363041934,1748559046590,-430.0,0.00020821,2]
[363041936,1748559046600,-589.21,0.00020821,2]
[363041938,1748559046609,-2053.24,0.00020821,2]
[363041940,1748559046619,-503.51486158,0.00020821,2]
[363041941,1748559046629,-151.0,0.00020821,2]
[363041944,1748559046638,-430.0,0.00020821,2]
[363041945,1748559046648,-151.0,0.00020821,2]
[363041948,1748559046658,-720.56,0.00020821,2]
[363041949,1748559046667,-696.31,0.00020821,2]
[363041952,1748559046676,-2613.16,0.00020821,2]
[363041954,1748559046686,-430.0,0.00020821,2]
[363041955,1748559046695,-430.0,0.00020821,2]
[363041957,1748559046705,-430.0,0.00020821,2]
[363041960,1748559046714,-4412.79,0.00020821,2]
[363041962,1748559046724,-968.5,0.00020821,2]
[363041963,1748559046733,-430.0,0.00020821,2]
[363041965,1748559046743,-517.0,0.00020821,2]
[363041967,1748559046752,-644.49,0.00020821,2]
[363041969,1748559046762,-430.0,0.00020821,2]
[363041972,1748559046772,-430.0,0.00020821,2]
[363041974,1748559046782,-953.49,0.00020821,2]
[363041976,1748559046791,-2879.71,0.00020821,2]
[363041978,1748559046801,-458.78,0.00020821,2]
[363041980,1748559046811,-697.57,0.00020821,2]
[363041982,1748559046820,-430.0,0.00020821,2]
[363041984,1748559046830,-151.0,0.00020821,2]
[363041986,1748559046840,-151.0,0.00020821,2]
[363041988,1748559046850,-3822.31,0.00020821,2]
[363041990,1748559046859,-430.0,0.00020821,2]
[363041992,1748559046869,-152.379212,0.00020821,2]
[363041993,1748559046878,-848.19,0.00020821,2]
[363041995,1748559046887,-1041.37,0.00020821,2]
[363041997,1748559046896,-155.0,0.00020821,2]
[363041999,1748559046906,-8172.02,0.00020821,2]
[363042001,1748559046915,-1022.41,0.00020821,2]
[363042003,1748559046925,-1425.87,0.00020821,2]
[363042005,1748559046934,-5104.13,0.00020821,2]
[363042007,1748559046946,-1326.38,0.00020821,2]
[363042010,1748559046955,-873.84,0.00020821,2]
[363042012,1748559046966,-467.28,0.00020821,2]
[363042014,1748559046976,-7369.0,0.00020821,2]
[363042016,1748559046985,-430.0,0.00020821,2]
[363042018,1748559046995,-2070.38,0.00020821,2]
[363042019,1748559047005,-430.0,0.00020821,2]
[363042021,1748559047015,-2055.19,0.00020821,2]
[363042023,1748559047025,-151.0,0.00020821,2]
[363042025,1748559047034,-1511.1,0.00020821,2]
[363042027,1748559047044,-430.0,0.00020821,2]
[363042029,1748559047053,-1350.97,0.00020821,2]
[363042031,1748559047062,-1584.57,0.00020821,2]
[363042033,1748559047072,-750.88,0.00020821,2]
[363042035,1748559047083,-1425.46,0.00020821,2]
[363042037,1748559047092,-430.0,0.00020821,2]
[363042039,1748559047102,-722.11,0.00020821,2]
[363042041,1748559047111,-760.02,0.00020821,2]
[363042043,1748559047120,-430.0,0.00020821,2]
[363042045,1748559047129,-578.85,0.00020821,2]
[363042047,1748559047139,-615.21,0.00020821,2]
[363042049,1748559047149,-913.66,0.00020821,2]
[363042051,1748559047158,-741.95,0.00020821,2]
[363042053,1748559047167,-430.0,0.00020821,2]
[363042055,1748559047178,-2799.2,0.00020821,2]
[363042057,1748559047188,-430.0,0.00020821,2]
[363042059,1748559047197,-517.21,0.00020821,2]
[363042061,1748559047207,-430.0,0.00020821,2]
[363042063,1748559047216,-430.0,0.00020821,2]
[363042065,1748559047226,-151.0,0.00020821,2]
[363042067,1748559047235,-1019.32,0.00020821,2]
[363042069,1748559047244,-151.0,0.00020821,2]
[363042081,1748559047347,-3424.75,0.00020821,2]
[363042083,1748559047360,-165.089126,0.00020821,2]
[363042085,1748559047370,-1169.52,0.00020821,2]
[363042087,1748559047381,-165.089126,0.00020821,2]
[363042090,1748559047393,-430.0,0.00020821,2]
[363042092,1748559047403,-2693.38,0.00020821,2]
[363042094,1748559047412,-2725.7,0.00020821,2]
[363042096,1748559047423,-430.35,0.00020821,2]
[363042098,1748559047442,-5000.0,0.00020886,2]
[363042100,1748559047452,-151.0,0.000209,3]
[363042102,1748559047464,-151.0,0.000209,3]
[363042104,1748559047474,-3259.03433194,0.00020934,4]
[363042106,1748559047483,-151.0,0.00021095,2]
[363042108,1748559047493,-151.0,0.00021095,2]
[363042110,1748559047503,-151.0,0.00021095,2]
[363042112,1748559047512,-176.14,0.00021095,2]
[363042114,1748559047521,-176.14,0.00021095,2]
[363042116,1748559047531,-176.14036748,0.00021095,2]
[363042118,1748559047540,-430.0,0.00021095,2]
[363042120,1748559047549,-430.0,0.00021095,2]
[363042122,1748559047558,-1131.49,0.00021095,2]
[363042124,1748559047568,-681.15,0.00021095,2]
[363042126,1748559047577,-430.0,0.00021095,2]
[363042128,1748559047586,-151.0,0.00021095,2]
[363042130,1748559047595,-853.32,0.00021095,2]
[363042131,1748559047604,-151.0,0.00021095,2]
[363042133,1748559047613,-430.0,0.00021095,2]
[363042135,1748559047623,-430.0,0.00021095,2]
[363042137,1748559047632,-430.0,0.00021095,2]
[363042139,1748559047641,-458.44,0.00021095,2]
[363042141,1748559047650,-430.0,0.00021095,2]
[363042143,1748559047659,-157.36518,0.00021095,2]
[363042145,1748559047668,-157.36518,0.00021095,2]
[363042147,1748559047677,-391.92203999,0.00021095,2]
[363042149,1748559047687,-151.0,0.00021095,2]
[363042151,1748559047698,-151.0,0.00021095,2]
[363042153,1748559047708,-760.73,0.00021095,2]
[363042155,1748559047717,-430.0,0.00021095,2]
[363042157,1748559047727,-430.0,0.00021095,2]
[363042159,1748559047736,-1386.842952,0.00021095,2]
[363042161,1748559047746,-430.0,0.00021095,2]
[363042163,1748559047755,-1386.842952,0.00021095,2]
[363042165,1748559047765,-430.0,0.00021095,2]
[363042167,1748559047774,-151.0,0.00021095,2]
[363042169,1748559047783,-151.0,0.00021095,2]
[363042171,1748559047793,-430.0,0.00021095,2]
[363042173,1748559047803,-773.76,0.00021095,2]
[363042175,1748559047812,-4753.22,0.00021095,2]
[363042177,1748559047821,-662.19,0.00021095,2]
[363042179,1748559047831,-3674.83,0.00021095,2]
[363042181,1748559047840,-430.0,0.00021095,2]
[363042183,1748559047849,-269.645922,0.00021095,2]
[363042186,1748559047865,-430.0,0.00021095,2]
[363042188,1748559047878,-430.0,0.00021095,2]
[363042190,1748559047889,-269.645922,0.00021095,2]
[363042192,1748559047899,-589.21,0.00021095,2]
[363042195,1748559047909,-2053.24,0.00021095,2]
[363042197,1748559047919,-430.0,0.00021095,2]
[363042198,1748559047928,-720.56,0.00021095,2]
[363042201,1748559047938,-696.31,0.00021095,2]
[363042203,1748559047948,-2613.16,0.00021095,2]
[363042206,1748559047970,-430.0,0.00021095,2]
[363042210,1748559047994,-430.0,0.00021095,2]
[363042213,1748559048016,-430.0,0.00021095,2]
[363042216,1748559048035,-4412.79,0.00021095,2]
[363042219,1748559048059,-968.5,0.00021095,2]
[363042222,1748559048081,-430.0,0.00021095,2]
[363042225,1748559048106,-517.0,0.00021095,2]
[363042228,1748559048125,-644.49,0.00021095,2]
[363042230,1748559048140,-430.0,0.00021095,2]
[363042231,1748559048156,-430.0,0.00021095,2]
[363042232,1748559048176,-953.49,0.00021095,2]
[363042233,1748559048195,-2879.71,0.00021095,2]
[363042234,1748559048209,-458.78,0.00021095,2]
[363042236,1748559048224,-697.57,0.00021095,2]
[363042239,1748559048243,-430.0,0.00021095,2]
[363042241,1748559048258,-3822.31,0.00021095,2]
[363042244,1748559048275,-430.0,0.00021095,2]
[363042247,1748559048288,-848.19,0.00021095,2]
[363042250,1748559048306,-1041.37,0.00021095,2]
[363042252,1748559048324,-8172.02,0.00021095,2]
[363042255,1748559048340,-1022.41,0.00021095,2]
[363042258,1748559048356,-1425.87,0.00021095,2]
[363042260,1748559048372,-5104.13,0.00021095,2]
[363042263,1748559048387,-1326.38,0.00021095,2]
[363042266,1748559048403,-873.84,0.00021095,2]
[363042268,1748559048420,-7369.0,0.00021095,2]
[363042270,1748559048440,-467.28,0.00021095,2]
[363042273,1748559048456,-430.0,0.00021095,2]
[363042276,1748559048470,-2070.38,0.00021095,2]
[363042278,1748559048485,-430.0,0.00021095,2]
[363042281,1748559048500,-2055.19,0.00021095,2]
[363042283,1748559048515,-1511.1,0.00021095,2]
[363042286,1748559048530,-430.0,0.00021095,2]
[363042288,1748559048544,-1350.97,0.00021095,2]
[363042291,1748559048557,-1584.57,0.00021095,2]
[363042293,1748559048572,-750.88,0.00021095,2]
[363042296,1748559048586,-1425.46,0.00021095,2]
[363042299,1748559048603,-430.0,0.00021095,2]
[363042301,1748559048620,-722.11,0.00021095,2]
[363042304,1748559048634,-430.0,0.00021095,2]
[363042306,1748559048649,-760.02,0.00021095,2]
[363042309,1748559048663,-578.85,0.00021095,2]
[363042312,1748559048683,-615.21,0.00021095,2]
[363042315,1748559048707,-913.66,0.00021095,2]
[363042317,1748559048717,-741.95,0.00021095,2]
[363042319,1748559048727,-430.0,0.00021095,2]
[363042321,1748559048737,-2799.2,0.00021095,2]
[363042323,1748559048746,-258.15,0.00021095,2]
[363042325,1748559048756,-517.21,0.00021095,2]
[363042327,1748559048766,-430.0,0.00021095,2]
[363042329,1748559048775,-430.0,0.00021095,2]
[363042331,1748559048784,-1019.32,0.00021095,2]
[363042333,1748559048793,-3424.75,0.00021095,2]
[363042335,1748559048803,-1169.52,0.00021095,2]
[363042338,1748559048812,-430.0,0.00021095,2]
[363042339,1748559048822,-2693.38,0.00021095,2]
[363042342,1748559048831,-2725.7,0.00021095,2]
[363042344,1748559048840,-430.35,0.00021095,2]
[363042346,1748559048850,-3259.03433194,0.00021107,4]
[363042366,1748559049012,-1249.41132836,0.00021116,2]
[363042369,1748559049054,-700.0,0.00021164,2]
[363042372,1748559049070,-2116.94363658,0.00021269,2]
[363042374,1748559049080,-3259.03433194,0.00021279,5]
[363042376,1748559049090,-151.0,0.00021369,2]
[363042378,1748559049099,-151.0,0.00021369,2]
[363042380,1748559049109,-282.886262,0.00021369,2]
[363042382,1748559049118,-2745.324701,0.00021369,2]
[363042384,1748559049127,-2745.324701,0.00021369,2]
[363042385,1748559049136,-430.0,0.00021369,2]
[363042388,1748559049146,-430.0,0.00021369,2]
[363042390,1748559049155,-1131.49,0.00021369,2]
[363042392,1748559049164,-681.15,0.00021369,2]
[363042394,1748559049174,-430.0,0.00021369,2]
[363042396,1748559049184,-853.32,0.00021369,2]
[363042398,1748559049193,-300.41,0.00021369,2]
[363042399,1748559049202,-430.0,0.00021369,2]
[363042401,1748559049211,-458.44,0.00021369,2]
[363042404,1748559049221,-430.0,0.00021369,2]
[363042406,1748559049231,-760.73,0.00021369,2]
[363042408,1748559049240,-573.08,0.00021369,2]
[363042409,1748559049249,-430.0,0.00021369,2]
[363042411,1748559049259,-151.0,0.00021369,2]
[363042413,1748559049269,-430.0,0.00021369,2]
[363042416,1748559049278,-430.0,0.00021369,2]
[363042417,1748559049288,-430.0,0.00021369,2]
[363042420,1748559049298,-773.76,0.00021369,2]
[363042421,1748559049308,-4753.22,0.00021369,2]
[363042424,1748559049317,-662.19,0.00021369,2]
[363042425,1748559049327,-3674.83,0.00021369,2]
[363042428,1748559049338,-430.0,0.00021369,2]
[363042429,1748559049347,-430.0,0.00021369,2]
[363042431,1748559049357,-430.0,0.00021369,2]
[363042433,1748559049366,-589.21,0.00021369,2]
[363042435,1748559049375,-2053.24,0.00021369,2]
[363042437,1748559049387,-151.0,0.00021369,2]
[363042439,1748559049396,-430.0,0.00021369,2]
[363042442,1748559049407,-151.0,0.00021369,2]
[363042444,1748559049416,-696.31,0.00021369,2]
[363042445,1748559049426,-720.56,0.00021369,2]
[363042448,1748559049435,-2613.16,0.00021369,2]
[363042450,1748559049445,-158.21125641,0.00021369,2]
[363042452,1748559049454,-430.0,0.00021369,2]
[363042454,1748559049464,-430.0,0.00021369,2]
[363042456,1748559049473,-4412.79,0.00021369,2]
[363042458,1748559049483,-968.5,0.00021369,2]
[363042460,1748559049492,-430.0,0.00021369,2]
[363042462,1748559049503,-517.0,0.00021369,2]
[363042464,1748559049512,-644.49,0.00021369,2]
[363042466,1748559049521,-430.0,0.00021369,2]
[363042468,1748559049531,-430.0,0.00021369,2]
[363042470,1748559049540,-953.49,0.00021369,2]
[363042472,1748559049549,-2879.71,0.00021369,2]
[363042473,1748559049559,-458.78,0.00021369,2]
[363042475,1748559049568,-697.57,0.00021369,2]
[363042477,1748559049579,-430.0,0.00021369,2]
[363042479,1748559049589,-151.0,0.00021369,2]
[363042481,1748559049598,-151.0,0.00021369,2]
[363042483,1748559049608,-3822.31,0.00021369,2]
[363042486,1748559049617,-430.0,0.00021369,2]
[363042488,1748559049626,-848.19,0.00021369,2]
[363042490,1748559049635,-1041.37,0.00021369,2]
[363042492,1748559049645,-155.0,0.00021369,2]
[363042494,1748559049655,-8172.02,0.00021369,2]
[363042496,1748559049665,-1022.41,0.00021369,2]
[363042498,1748559049674,-1425.87,0.00021369,2]
[363042500,1748559049683,-5104.13,0.00021369,2]
[363042502,1748559049693,-1326.38,0.00021369,2]
[363042504,1748559049702,-873.84,0.00021369,2]
[363042506,1748559049712,-7369.0,0.00021369,2]
[363042508,1748559049722,-467.28,0.00021369,2]
[363042510,1748559049731,-430.0,0.00021369,2]
[363042512,1748559049740,-2070.38,0.00021369,2]
[363042514,1748559049749,-430.0,0.00021369,2]
[363042516,1748559049759,-2055.19,0.00021369,2]
[363042518,1748559049768,-151.0,0.00021369,2]
[363042520,1748559049777,-1511.1,0.00021369,2]
[363042522,1748559049787,-430.0,0.00021369,2]
[363042524,1748559049796,-1350.97,0.00021369,2]
[363042525,1748559049805,-1584.57,0.00021369,2]
[363042528,1748559049815,-750.88,0.00021369,2]
[363042530,1748559049826,-1425.46,0.00021369,2]
[363042532,1748559049836,-430.0,0.00021369,2]
[363042533,1748559049846,-722.11,0.00021369,2]
[363042536,1748559049856,-430.0,0.00021369,2]
[363042538,1748559049866,-760.02,0.00021369,2]
[363042539,1748559049875,-578.85,0.00021369,2]
[363042541,1748559049884,-615.21,0.00021369,2]
[363042543,1748559049894,-913.66,0.00021369,2]
[363042545,1748559049903,-741.95,0.00021369,2]
[363042547,1748559049912,-430.0,0.00021369,2]
[363042549,1748559049921,-2799.2,0.00021369,2]
[363042551,1748559049931,-517.21,0.00021369,2]
[363042553,1748559049940,-430.0,0.00021369,2]
[363042555,1748559049949,-430.0,0.00021369,2]